fUST/lending_fUST_20250225
["ID","MTS","AMOUNT","RATE_DAILY","PERIOD"]
[354327594,1740417038329,-120.27631437,0.00014202,2]
[354327595,1740417038343,-379.72368563,0.00014202,2]
[354327596,1740417038352,-500.0,0.00014284,2]
[354327598,1740417038361,-456.67222749,0.00014367,2]
[354327600,1740417038370,-153.0,0.00014483,2]
[354327602,1740417038380,-153.0,0.00014483,2]
[354327604,1740417038390,-153.0,0.00014483,2]
[354327606,1740417038399,-153.0,0.00014483,2]
[354327608,1740417038409,-153.0,0.00014483,2]
[354327610,1740417038419,-538.0,0.00014592,2]
[354327611,1740417038429,-1970.0,0.00014592,2]
[354327612,1740417038438,-63.72647892,0.00014592,2]
[354327613,1740417038450,-1722.3396068,0.00014592,2]
[354327614,1740417038461,-500.93391428,0.00014592,2]
[354327615,1740417038470,-525.303,0.00014638,2]
[354327616,1740417038479,-471.12301272,0.000149,2]
[354327617,1740417038498,-737.75698728,0.000149,2]
[354327618,1740417038507,-150.0,0.00015057,2]
[354327619,1740417038516,-396.0,0.00015067,2]
[354327620,1740417038525,-154.8331553,0.000157,2]
[354327621,1740417038535,-153.0,0.000157,2]
[354327622,1740417038544,-153.0,0.000157,2]
[354327623,1740417038553,-153.0,0.000157,2]
[354327624,1740417038562,-154.8331553,0.000157,2]
[354327625,1740417038571,-154.8331553,0.000157,2]
[354327626,1740417038580,-153.0,0.000157,2]
[354327627,1740417038589,-439.31036452,0.000157,2]
[354327634,1740417040467,-675.27794328,0.000157,2]
[354327635,1740417040476,-154.2329845,0.000157,2]
[354327636,1740417040486,-153.0,0.000157,2]
[354327637,1740417040495,-154.8331553,0.000157,2]
[354327638,1740417040503,-153.0,0.000157,2]
[354327639,1740417040513,-154.8331553,0.000157,2]
[354327640,1740417040522,-165.654473,0.00015775,2]
[354327641,1740417040532,-3000.0,0.00016,2]
[354327642,1740417040541,-3000.0,0.0001601,2]
[354327643,1740417040550,-3000.0,0.0001602,2]
[354327644,1740417040559,-2952.6953567,0.0001603,2]
[354327645,1740417040571,-47.3046433,0.0001603,2]
[354327646,1740417040588,-438.0253567,0.0001604,2]
[354327647,1740417040767,-1914.27173491,0.0001604,2]
[354327648,1740417040779,-647.70290839,0.0001604,2]
[354327649,1740417040788,-26.94534117,0.0001604,2]
[354327660,1740417776176,161.819114,9.041e-05,2]
[354327668,1740418113382,1142.58282213,0.00017873,90]
[354327670,1740418148145,-210.0,0.0001,2]
[354327671,1740418148165,-179.71246006,0.00010741,2]
[354327672,1740418148188,-242.52,0.00010959,2]
[354327673,1740418148209,-202.1,0.00010959,2]
[354327674,1740418148232,-168.41,0.00010959,2]
[354327675,1740418148252,-640.12967824,0.00010959,2]
[354327676,1740418166117,-183.3335,0.00010959,2]
[354327697,1740418232471,-195.7894721,0.00012723,2]
[354327698,1740418232481,-300.0,0.00012917,2]
[354327699,1740418232491,-14691.0055896,0.00012918,2]
[354327700,1740418232500,-179.69451932,0.00013699,2]
[354327701,1740418232509,-500.0,0.00013872,2]
[354327702,1740418232519,-500.0,0.00013872,2]
[354327703,1740418232529,-500.0,0.00013872,2]
[354327704,1740418232539,-503.62623729,0.00013872,2]
[354327705,1740418232549,-500.0,0.00013872,2]
[354327706,1740418232558,-500.0,0.00013872,2]
[354327707,1740418232568,-500.0,0.00013872,2]
[354327708,1740418232578,-500.0,0.00013872,2]
[354327709,1740418232587,-500.0,0.00013872,2]
[354327710,1740418232596,-1367.77,0.00013872,2]
[354327711,1740418232606,-500.0,0.00013872,2]
[354327712,1740418232616,-516.52574689,0.00013872,2]
[354327713,1740418232625,-500.0,0.00013873,2]
[354327714,1740418232634,-500.0,0.00013873,2]
[354327715,1740418232643,-500.0,0.00013873,2]
[354327716,1740418232653,-500.0,0.00013873,2]
[354327717,1740418232662,-500.0,0.00013873,2]
[354327718,1740418232672,-384.54830207,0.00013953,2]
[354327719,1740418232681,-500.0,0.00013953,2]
[354327720,1740418232690,-500.0,0.00013953,2]
[354327721,1740418232699,-500.0,0.00013953,2]
[354327722,1740418232709,-500.0,0.00013953,2]
[354327723,1740418232719,-500.0,0.00013953,2]
[354327724,1740418232728,-500.0,0.00013953,2]
[354327725,1740418232738,-500.0,0.00013953,2]
[354327726,1740418232748,-525.54,0.00013953,2]
[354327727,1740418232758,-500.0,0.00013953,2]
[354327728,1740418232768,-500.0,0.00013953,2]
[354327729,1740418232777,-761.86,0.00013953,2]
[354327730,1740418232786,-500.0,0.00013953,2]
[354327731,1740418232796,-500.0,0.00013953,2]
[354327732,1740418232805,-500.0,0.00013953,2]
[354327733,1740418232814,-500.0,0.00013953,2]
[354327734,1740418232823,-500.0,0.00013953,2]
[354327735,1740418232832,-500.0,0.00013953,2]
[354327736,1740418232841,-500.0,0.00013953,2]
[354327737,1740418232850,-500.0,0.00013954,2]
[354327738,1740418232859,-500.0,0.00013954,2]
[354327739,1740418232868,-388.79796993,0.00013954,2]
[354327770,1740418238480,-500.0,0.00013871,2]
[354327771,1740418238490,-111.20203007,0.00013954,2]
[354327772,1740418238499,-313.35766992,0.00013954,2]
[354327773,1740418238511,-186.64233008,0.00013954,2]
[354327774,1740418238520,-500.0,0.00013954,2]
[354327775,1740418238529,-223.77032626,0.00013954,2]
[354327776,1740418238545,-1143.99967374,0.00013954,2]
[354327777,1740418238554,-500.0,0.00013954,2]
[354327778,1740418238563,-500.0,0.00013956,2]
[354327779,1740418238572,-500.0,0.00013956,2]
[354327780,1740418238693,-500.0,0.00013956,2]
[354327781,1740418238705,-500.0,0.00013956,2]
[354327782,1740418238714,-6713.06776758,0.00013991,2]
[354327783,1740418238723,-1551.11077419,0.00013993,2]
[354327784,1740418238735,-1668.2999999,0.00013993,2]
[354327785,1740418238746,-3493.65699349,0.00013993,2]
[354327786,1740418238754,-1981.5761575,0.00013993,5]
[354327787,1740418238763,-4087.05244901,0.00013993,2]
[354327788,1740418238775,-2626.01531857,0.00013993,2]
[354327789,1740418238784,-3265.37275222,0.00013996,2]
[354327790,1740418238793,-3265.37275222,0.00013997,2]
[354327791,1740418238802,-3265.37275222,0.00013999,2]
[354327792,1740418238812,-500.0,0.00014035,2]
[354327793,1740418238822,-500.0,0.00014035,2]
[354327794,1740418238831,-500.0,0.00014035,2]
[354327795,1740418238840,-500.0,0.00014035,2]
[354327796,1740418238850,-500.0,0.00014035,2]
[354327797,1740418238859,-500.0,0.00014035,2]
[354327798,1740418238869,-500.0,0.00014035,2]
[354327799,1740418238879,-500.0,0.00014035,2]
[354327800,1740418238888,-761.86,0.00014035,2]
[354327801,1740418238897,-500.0,0.00014035,2]
[354327802,1740418238906,-500.0,0.00014035,2]
[354327803,1740418238916,-500.0,0.00014035,2]
[354327804,1740418238925,-500.0,0.00014035,2]
[354327805,1740418238935,-500.0,0.00014035,2]
[354327806,1740418238945,-500.0,0.00014035,2]
[354327807,1740418238955,-295.62,0.00014036,2]
[354327808,1740418238964,-336.74,0.00014036,2]
[354327809,1740418238974,-500.0,0.00014036,2]
[354327810,1740418238983,-500.0,0.00014036,2]
[354327811,1740418238992,-1367.77,0.00014036,2]
[354327812,1740418239002,-500.0,0.00014036,2]
[354327813,1740418239011,-500.0,0.00014038,2]
[354327814,1740418239020,-500.0,0.00014038,2]
[354327815,1740418239029,-526.54517632,0.00014038,2]
[354327816,1740418239038,-500.0,0.00014118,2]
[354327817,1740418239048,-500.0,0.00014118,2]
[354327818,1740418239057,-500.0,0.00014118,2]
[354327819,1740418239066,-500.0,0.00014118,2]
[354327820,1740418239075,-500.0,0.00014118,2]
[354327821,1740418239084,-500.0,0.00014118,2]
[354327822,1740418239093,-761.86,0.00014118,2]
[354327823,1740418239102,-500.0,0.00014118,2]
[354327824,1740418239111,-500.0,0.00014118,2]
[354327825,1740418239121,-500.0,0.00014118,2]
[354327826,1740418239130,-500.0,0.00014118,2]
[354327827,1740418239139,-500.0,0.00014118,2]
[354327828,1740418239148,-195.56436476,0.00014119,5]
[354327829,1740418239157,-625.42,0.00014119,2]
[354327830,1740418239167,-260.85542563,0.00014119,2]
[354327831,1740418239177,-1367.77,0.00014119,2]
[354327832,1740418239186,-500.0,0.0001412,2]
[354327833,1740418239195,-500.0,0.0001412,2]
[354327834,1740418239207,-420.0,0.00014167,2]
[354327835,1740418239218,-315.6,0.000142,2]
[354327836,1740418239227,-500.0,0.000142,2]
[354327837,1740418239236,-500.0,0.000142,2]
[354327838,1740418239247,-500.0,0.000142,2]
[354327839,1740418239255,-352.03,0.000142,2]
[354327840,1740418239265,-283.61,0.000142,2]
[354327841,1740418239274,-40.32866086,0.000142,2]
[354327845,1740418240626,-500.0,0.00013953,2]
[354327846,1740418240635,-500.0,0.00014035,2]
[354327847,1740418240645,-500.0,0.00014118,2]
[354327848,1740418240654,-721.53133914,0.000142,2]
[354327849,1740418240664,-500.0,0.000142,2]
[354327850,1740418240673,-500.0,0.000142,2]
[354327851,1740418240683,-500.0,0.000142,2]
[354327852,1740418240692,-500.0,0.000142,2]
[354327853,1740418240703,-500.0,0.000142,2]
[354327854,1740418240712,-1367.77,0.00014201,2]
[354327855,1740418240721,-500.0,0.00014282,2]
[354327856,1740418240731,-490.99,0.00014282,2]
[354327857,1740418240741,-500.0,0.00014282,2]
[354327858,1740418240750,-761.86,0.00014282,2]
[354327859,1740418240760,-500.0,0.00014282,2]
[354327860,1740418240769,-500.0,0.00014282,2]
[354327861,1740418240779,-500.0,0.00014282,2]
[354327862,1740418240788,-500.0,0.00014282,2]
[354327863,1740418240797,-1367.77,0.00014283,2]
[354327865,1740418240806,-500.0,0.00014364,2]
[354327866,1740418240816,-500.0,0.00014364,2]
[354327867,1740418240825,-761.86,0.00014364,2]
[354327868,1740418240834,-156.2,0.00014364,2]
[354327869,1740418240843,-500.0,0.00014364,2]
[354327870,1740418240853,-500.0,0.00014364,2]
[354327871,1740418240862,-500.0,0.00014364,2]
[354327872,1740418240871,-1367.77,0.00014365,2]
[354327873,1740418240880,-500.0,0.00014446,2]
[354327874,1740418240889,-500.0,0.00014446,2]
[354327875,1740418240898,-761.86,0.00014446,2]
[354327876,1740418240907,-500.0,0.00014446,2]
[354327877,1740418240917,-500.0,0.00014446,2]
[354327878,1740418240926,-500.0,0.00014446,2]
[354327879,1740418240935,-1367.77,0.00014447,2]
[354327880,1740418240945,-153.0,0.00014483,2]
[354327881,1740418240956,-500.0,0.00014529,2]
[354327882,1740418240966,-500.0,0.00014529,2]
[354327883,1740418240975,-761.86,0.00014529,2]
[354327884,1740418240985,-500.0,0.00014529,2]
[354327885,1740418240995,-500.0,0.00014529,2]
[354327886,1740418241004,-500.0,0.00014529,2]
[354327887,1740418241013,-1367.77,0.0001453,2]
[354327888,1740418241022,-542.65,0.00014611,2]
[354327889,1740418241031,-500.0,0.00014611,2]
[354327890,1740418241041,-761.86,0.00014611,2]
[354327891,1740418241050,-567.82,0.00014611,2]
[354327892,1740418241059,-500.0,0.00014611,2]
[354327893,1740418241068,-500.0,0.00014611,2]
[354327894,1740418241078,-1367.77,0.00014612,2]
[354327895,1740418241088,-464.52985933,0.00014693,2]
[354327896,1740418241097,-761.86,0.00014693,2]
[354327897,1740418241107,-500.0,0.00014693,2]
[354327898,1740418241116,-500.0,0.00014693,2]
[354327899,1740418241125,-1367.77,0.00014694,2]
[354327900,1740418241134,-19601.91606613,0.00014712,2]
[354327901,1740418241143,-761.86,0.00014775,2]
[354327902,1740418241152,-500.0,0.00014775,2]
[354327903,1740418241161,-500.0,0.00014775,2]
[354327904,1740418241171,-1367.77,0.00014776,2]
[354327905,1740418241180,-151.0,0.00014825,2]
[354327906,1740418241190,-154.6081802,0.00014826,2]
[354327907,1740418241200,-500.0,0.00014844,2]
[354327908,1740418241211,-500.0,0.00014844,2]
[354327909,1740418241224,-500.0,0.00014844,2]
[354327910,1740418241233,-500.0,0.00014844,2]
[354327911,1740418241243,-500.0,0.00014844,2]
[354327912,1740418241254,-500.0,0.00014844,2]
[354327913,1740418241265,-500.0,0.00014844,2]
[354327914,1740418241276,-500.0,0.00014844,2]
[354327915,1740418241288,-611.42,0.00014844,2]
[354327916,1740418241302,-500.0,0.00014844,2]
[354327917,1740418241314,-500.0,0.00014844,2]
[354327918,1740418241326,-500.0,0.00014844,2]
[354327919,1740418241336,-500.0,0.00014844,2]
[354327920,1740418241346,-500.0,0.00014844,2]
[354327921,1740418241358,-500.0,0.00014844,2]
[354327922,1740418241370,-500.0,0.00014844,2]
[354327923,1740418241383,-500.0,0.00014844,2]
[354327924,1740418241394,-500.0,0.00014844,2]
[354327925,1740418241406,-500.0,0.00014844,2]
[354327926,1740418241418,-500.0,0.00014844,2]
[354327927,1740418241429,-500.0,0.00014844,2]
[354327928,1740418241441,-500.0,0.00014844,2]
[354327929,1740418241451,-500.0,0.00014844,2]
[354327930,1740418241462,-500.0,0.00014844,2]
[354327931,1740418241472,-500.0,0.00014844,2]
[354327932,1740418241483,-500.0,0.00014844,2]
[354327933,1740418241493,-500.0,0.00014844,2]
[354327934,1740418241502,-500.0,0.00014844,2]
[354327935,1740418241513,-500.0,0.00014844,2]
[354327936,1740418241524,-537.03,0.00014844,2]
[354327937,1740418241536,-500.0,0.00014844,2]
[354327938,1740418241549,-500.0,0.00014844,2]
[354327939,1740418241559,-500.0,0.00014844,2]
[354327940,1740418241570,-2951.86,0.00014844,2]
[354327941,1740418241582,-500.0,0.00014844,2]
[354327942,1740418241593,-500.0,0.00014844,2]
[354327943,1740418241605,-500.0,0.00014844,2]
[354327944,1740418241615,-761.86,0.00014857,2]
[354327945,1740418241627,-500.0,0.00014857,2]
[354327946,1740418241638,-500.0,0.00014857,2]
[354327947,1740418241649,-1367.77,0.00014858,2]
[354327948,1740418241660,-500.0,0.00014873,2]
[354327949,1740418241672,-500.0,0.00014888,2]
[354327950,1740418241683,-500.0,0.00014888,2]
[354327951,1740418241696,-500.0,0.00014888,2]
[354327952,1740418241708,-405.14,0.00014888,2]
[354327953,1740418241720,-500.0,0.00014888,2]
[354327954,1740418241732,-563.95901223,0.00014888,2]
[354327955,1740418241743,-500.0,0.00014888,5]
[354327956,1740418241755,-500.0,0.00014888,2]
[354327957,1740418241767,-500.0,0.00014888,2]
[354327958,1740418241777,-329.96548478,0.00014888,2]
[354327959,1740418241789,-500.0,0.00014888,2]
[354327960,1740418241800,-500.0,0.00014888,2]
[354327961,1740418241812,-500.0,0.00014888,2]
[354327962,1740418241824,-500.0,0.00014888,2]
[354327963,1740418241836,-500.0,0.00014888,2]
[354327964,1740418241846,-500.0,0.00014888,2]
[354327965,1740418241857,-500.0,0.00014888,2]
[354327966,1740418241867,-722.72,0.00014888,2]
[354327967,1740418241877,-500.0,0.00014888,2]
[354327968,1740418241887,-500.0,0.00014888,2]
[354327969,1740418241898,-502.01208196,0.00014888,2]
[354327970,1740418241908,-500.0,0.00014888,2]
[354327971,1740418241918,-500.0,0.00014888,2]
[354327972,1740418241929,-1174.57,0.000149,2]
[354327973,1740418241942,-12930.54958668,0.000149,2]
[354327974,1740418242051,-19008.0,0.000149,2]
[354328010,1740418246374,-500.0,0.00013953,2]
[354328012,1740418246386,-500.0,0.00013953,2]
[354328014,1740418246397,-500.0,0.00014035,2]
[354328016,1740418246407,-500.0,0.00014118,2]
[354328018,1740418246417,-543.58,0.000142,2]
[354328021,1740418246428,-500.0,0.00014282,2]
[354328023,1740418246439,-502.06,0.00014364,2]
[354328025,1740418246449,-5705.08284094,0.000149,2]
[354328027,1740418246461,-1779.9999999,0.000149,2]
[354328029,1740418246473,-11002.2992363,0.000149,2]
[354328030,1740418246486,-7163.31449496,0.000149,2]
[354328031,1740418246499,-49764.47898029,0.000149,2]
[354328032,1740418246511,-16625.83041893,0.000149,2]
[354328033,1740418246522,-500.0,0.00014925,2]
[354328034,1740418246532,-500.0,0.00014925,2]
[354328035,1740418246542,-500.0,0.00014925,2]
[354328036,1740418246552,-500.0,0.00014925,2]
[354328037,1740418246562,-500.0,0.00014925,2]
[354328038,1740418246572,-578.31135391,0.00014925,2]
[354328039,1740418246583,-500.0,0.00014925,2]
[354328040,1740418246593,-500.0,0.00014925,2]
[354328041,1740418246604,-500.0,0.00014925,2]
[354328042,1740418246615,-500.0,0.00014925,2]
[354328043,1740418246625,-422.70276199,0.00014925,2]
[354328044,1740418246636,-500.0,0.00014925,2]
[354328045,1740418246651,-397.81109669,0.00014925,2]
[354328046,1740418246662,-500.0,0.00014925,2]
[354328047,1740418246672,-500.0,0.00014925,2]
[354328048,1740418246683,-500.0,0.00014925,2]
[354328049,1740418246694,-500.0,0.00014925,2]
[354328050,1740418246709,-500.0,0.00014925,2]
[354328051,1740418246720,-500.0,0.00014925,2]
[354328052,1740418246729,-500.0,0.00014925,2]
[354328053,1740418246739,-500.0,0.00014925,2]
[354328054,1740418246748,-500.0,0.00014925,2]
[354328055,1740418246885,-187.0,0.00014925,2]
[354328056,1740418246900,-500.0,0.00014925,2]
[354328057,1740418246910,-500.0,0.00014925,2]
[354328058,1740418246920,-500.0,0.00014925,2]
[354328059,1740418246929,-500.0,0.00014925,2]
[354328060,1740418246938,-500.0,0.00014925,2]
[354328061,1740418246947,-500.0,0.00014925,2]
[354328062,1740418246957,-500.0,0.00014925,2]
[354328063,1740418246967,-500.0,0.00014925,2]
[354328064,1740418246976,-500.0,0.00014925,2]
[354328065,1740418246986,-500.0,0.00014926,2]
[354328066,1740418246995,-500.0,0.00014926,2]
[354328067,1740418247004,-500.2,0.00014926,2]
[354328068,1740418247013,-500.0,0.00014926,2]
[354328069,1740418247023,-621.12,0.00014926,2]
[354328070,1740418247032,-500.0,0.00014926,2]
[354328071,1740418247044,-500.0,0.00014926,2]
[354328072,1740418247053,-500.0,0.00014926,2]
[354328073,1740418247062,-500.0,0.00014926,2]
[354328074,1740418247071,-500.0,0.00014926,2]
[354328075,1740418247080,-500.0,0.00014926,2]
[354328076,1740418247089,-500.0,0.00014926,2]
[354328077,1740418247098,-500.0,0.00014926,2]
[354328078,1740418247107,-500.0,0.00014926,2]
[354328079,1740418247116,-500.0,0.00014926,2]
[354328080,1740418247125,-500.0,0.00014926,2]
[354328081,1740418247134,-500.0,0.00014926,2]
[354328082,1740418247142,-500.0,0.00014926,2]
[354328083,1740418247151,-500.0,0.00014926,2]
[354328084,1740418247161,-500.0,0.00014926,2]
[354328085,1740418247170,-500.0,0.00014926,2]
[354328086,1740418247179,-537.03,0.00014926,2]
[354328087,1740418247188,-500.0,0.00014926,2]
[354328088,1740418247197,-500.0,0.00014926,2]
[354328089,1740418247207,-500.0,0.00014926,2]
[354328090,1740418247218,-2951.86,0.00014926,2]
[354328091,1740418247227,-500.0,0.00014926,2]
[354328092,1740418247237,-500.0,0.00014926,2]
[354328093,1740418247246,-500.0,0.00014926,2]
[354328094,1740418247255,-698.13439095,0.0001494,2]
[354328095,1740418247267,-63.72560905,0.0001494,2]
[354328096,1740418247276,-500.0,0.0001494,2]
[354328097,1740418247285,-416.54,0.0001494,2]
[354328098,1740418247297,-666.06088369,0.00014941,2]
[354328099,1740418247309,-701.70911631,0.00014941,2]
[354328100,1740418247318,-500.0,0.0001497,2]
[354328101,1740418247328,-500.0,0.0001497,2]
[354328102,1740418247337,-501.71481243,0.0001497,5]
[354328103,1740418247346,-500.0,0.0001497,2]
[354328104,1740418247355,-500.0,0.0001497,2]
[354328105,1740418247365,-285.00794394,0.0001497,2]
[354328106,1740418247374,-500.0,0.0001497,2]
[354328107,1740418247383,-500.0,0.0001497,2]
[354328108,1740418247392,-500.0,0.0001497,2]
[354328109,1740418247401,-722.72,0.0001497,2]
[354328110,1740418247411,-500.0,0.0001497,2]
[354328111,1740418247420,-500.0,0.0001497,2]
[354328112,1740418247430,-500.0,0.0001497,2]
[354328113,1740418247439,-500.0,0.00015008,2]
[354328114,1740418247447,-218.78,0.00015008,2]
[354328115,1740418247457,-500.0,0.00015008,2]
[354328116,1740418247466,-500.0,0.00015008,2]
[354328117,1740418247476,-500.0,0.00015008,2]
[354328118,1740418247485,-500.0,0.00015008,2]
[354328119,1740418247494,-500.0,0.00015008,2]
[354328120,1740418247502,-500.0,0.00015008,2]
[354328121,1740418247511,-500.0,0.00015008,2]
[354328122,1740418247520,-296.2314022,0.00015008,2]
[354328123,1740418247532,-203.7685978,0.00015008,2]
[354328124,1740418247541,-500.0,0.00015008,2]
[354328125,1740418247551,-500.0,0.00015008,2]
[354328126,1740418247560,-500.0,0.00015008,2]
[354328127,1740418247570,-537.03,0.00015008,2]
[354328128,1740418247579,-500.0,0.00015008,2]
[354328129,1740418247588,-538.78,0.00015008,2]
[354328130,1740418247597,-500.0,0.00015008,2]
[354328131,1740418247606,-2951.86,0.00015008,2]
[354328132,1740418247615,-500.0,0.00015008,2]
[354328133,1740418247624,-500.0,0.00015008,2]
[354328134,1740418247634,-500.0,0.00015008,2]
[354328135,1740418247643,-761.86,0.00015022,2]
[354328136,1740418247652,-500.0,0.00015022,2]
[354328137,1740418247661,-1367.77,0.00015023,2]
[354328138,1740418247671,-61989.7777791,0.00015043,2]
[354328139,1740418247680,-500.0,0.00015053,2]
[354328140,1740418247689,-500.0,0.00015053,2]
[354328141,1740418247698,-722.72,0.00015053,2]
[354328142,1740418247708,-500.0,0.00015053,2]
[354328143,1740418247717,-500.0,0.0001509,2]
[354328144,1740418247726,-500.0,0.0001509,2]
[354328145,1740418247735,-227.20795082,0.0001509,2]
[354328146,1740418247744,-500.0,0.0001509,2]
[354328147,1740418247753,-643.38,0.0001509,2]
[354328148,1740418247762,-500.0,0.0001509,2]
[354328149,1740418247771,-500.0,0.0001509,2]
[354328150,1740418247781,-500.0,0.0001509,2]
[354328151,1740418247790,-500.0,0.0001509,2]
[354328152,1740418247799,-270.07,0.0001509,2]
[354328153,1740418247808,-500.0,0.0001509,2]
[354328154,1740418247817,-500.0,0.0001509,2]
[354328155,1740418247827,-537.03,0.0001509,2]
[354328156,1740418247837,-2951.86,0.0001509,2]
[354328157,1740418247846,-500.0,0.0001509,2]
[354328158,1740418247855,-608.38203747,0.0001509,2]
[354328159,1740418247864,-500.0,0.0001509,2]
[354328160,1740418247873,-761.86,0.00015104,2]
[354328161,1740418247882,-500.0,0.00015104,2]
[354328162,1740418247891,-1367.77,0.00015105,2]
[354328163,1740418247900,-529.68458018,0.00015111,2]
[354328164,1740418247911,-500.0,0.00015135,2]
[354328165,1740418247920,-722.72,0.00015135,2]
[354328166,1740418247930,-340.73604057,0.00015135,2]
[354328167,1740418247939,-588.67,0.00015173,2]
[354328168,1740418247948,-500.0,0.00015173,2]
[354328169,1740418247959,-537.03,0.00015173,2]
[354328170,1740418247969,-2951.86,0.00015173,2]
[354328171,1740418247978,-500.0,0.00015173,2]
[354328172,1740418247988,-568.24,0.00015173,2]
[354328173,1740418247997,-761.86,0.00015186,2]
[354328174,1740418248006,-500.0,0.00015186,2]
[354328175,1740418248015,-1367.77,0.00015187,2]
[354328176,1740418248025,-529.68458018,0.00015211,2]
[354328177,1740418248034,-722.72,0.00015217,2]
[354328178,1740418248043,-61989.7777791,0.00015245,2]
[354328179,1740418248052,-500.0,0.00015255,2]
[354328180,1740418248061,-537.03,0.00015255,2]
[354328181,1740418248071,-2951.86,0.00015255,2]
[354328182,1740418248081,-271.87,0.00015255,2]
[354328183,1740418248092,-761.86,0.00015268,2]
[354328184,1740418248102,-500.0,0.00015268,2]
[354328185,1740418248111,-1367.77,0.00015269,2]
[354328186,1740418248121,-2287.0,0.00015292,2]
[354328187,1740418248130,-396.0,0.00015292,2]
[354328188,1740418248139,-150.0,0.00015292,2]
[354328189,1740418248149,-538.0,0.00015292,2]
[354328190,1740418248158,-488.749,0.00015292,2]
[354328191,1740418248167,-722.72,0.00015299,2]
[354328192,1740418248177,-529.68458018,0.00015311,2]
[354328193,1740418248187,-537.03,0.00015337,2]
[354328194,1740418248196,-2951.86,0.00015337,2]
[354328195,1740418248207,-761.86,0.0001535,2]
[354328196,1740418248218,-453.82,0.0001535,2]
[354328197,1740418248228,-1367.77,0.00015352,2]
[354328198,1740418248238,-722.72,0.00015381,2]
[354328199,1740418248247,-529.68458018,0.00015411,2]
[354328200,1740418248258,-537.03,0.00015419,2]
[354328201,1740418248267,-2951.86,0.00015419,2]
[354328202,1740418248277,-154.60818018,0.00015428,2]
[354328203,1740418248286,-761.86,0.00015433,2]
[354328204,1740418248296,-1069.434951,0.00015434,2]
[354328205,1740418248305,-1069.434951,0.00015434,2]
[354328206,1740418248314,-1367.77,0.00015434,2]
[354328207,1740418248323,-722.72,0.00015464,2]
[354328208,1740418248333,-537.03,0.00015501,2]
[354328209,1740418248342,-2951.86,0.00015501,2]
[354328210,1740418248351,-529.68458018,0.00015511,2]
[354328211,1740418248360,-761.86,0.00015515,2]
[354328212,1740418248369,-1367.77,0.00015516,2]
[354328213,1740418248379,-587.0,0.00015537,2]
[354328214,1740418248389,-722.72,0.00015546,2]
[354328215,1740418248399,-61989.7777791,0.00015574,2]
[354328216,1740418248409,-537.03,0.00015584,2]
[354328217,1740418248419,-2951.86,0.00015584,2]
[354328218,1740418248430,-761.86,0.00015597,2]
[354328219,1740418248440,-151.0,0.00015598,2]
[354328220,1740418248450,-348.741835,0.00015598,2]
[354328221,1740418248463,-348.741835,0.00015598,2]
[354328222,1740418248473,-1367.77,0.00015598,2]
[354328223,1740418248483,-151.0,0.00015598,2]